bitfinex-derivatives/quotes_BTCF0:USTF0_20260107
["timestamp","ask_amount","ask_price","bid_price","bid_amount"]
[1767820178182,0.08690021,91245.0,91223.0,0.17923711]
[1767820180677,0.09328,91247.0,91222.0,0.09328]
[1767820180678,0.08690021,91242.0,91222.0,0.09328]
[1767820180873,0.08690021,91240.0,91222.0,0.09328]
[1767820182069,0.08690021,91235.0,91219.0,0.09328]
[1767820182272,0.08690021,91233.0,91219.0,0.09328]
[1767820182470,0.08690021,91239.0,91219.0,0.09328]
[1767820182680,0.08690021,91239.0,91219.0,0.18674525]
[1767820183382,0.08690021,91238.0,91219.0,0.09328]
[1767820183583,0.08690021,91237.0,91219.0,0.09328]
[1767820183766,0.08690021,91237.0,91214.0,0.17923711]
[1767820184080,0.08690021,91237.0,91215.0,0.27251711]
[1767820184381,0.08690021,91237.0,91216.0,0.09346525]
[1767820187084,0.08690021,91237.0,91218.0,0.09346525]
[1767820188372,0.08690021,91237.0,91219.0,0.09346525]
[1767820193881,0.0998582,91237.0,91215.0,0.09328]
[1767820194089,0.08690021,91236.0,91216.0,0.09346525]
[1767820194385,0.08690021,91236.0,91216.0,0.17923711]
[1767820194594,0.08690021,91236.0,91217.0,0.09346525]
[1767820201280,0.08690021,91238.0,91218.0,0.09346525]
[1767820201481,0.08690021,91237.0,91218.0,0.09346525]
[1767820202696,0.08690021,91237.0,91218.0,0.17700326]
[1767820203293,0.07886649,91236.0,91218.0,0.09346525]
[1767820205187,0.07886649,91228.0,91209.0,0.09328]
[1767820205490,0.07886649,91221.0,91200.0,0.09328]
[1767820205694,0.07886649,91221.0,91200.0,0.18680875]
[1767820205986,0.07886649,91221.0,91201.0,0.09352875]
[1767820206390,0.17214649,91224.0,91205.0,0.17706676]
[1767820206689,0.17214649,91224.0,91206.0,0.09352875]
[1767820207084,0.07886649,91223.0,91206.0,0.09352875]
[1767820208492,0.09415634,91220.0,91198.0,0.09328]
[1767820208694,0.07886649,91219.0,91198.0,0.09328]
[1767820208886,0.17302283,91219.0,91198.0,0.09328]
[1767820209088,0.17302283,91219.0,91182.0,0.956898]
[1767820209089,0.07886649,91214.0,91174.0,0.09805318]
[1767820209295,0.13333706,91210.0,91169.0,0.00219374]
[1767820209492,0.17302283,91207.0,91169.0,0.00219374]
[1767820209795,0.17302283,91205.0,91169.0,0.00219374]
[1767820209979,0.17302283,91203.0,91169.0,0.00219374]
[1767820210185,0.17302283,91201.0,91169.0,0.00219374]
[1767820210488,0.17302283,91186.0,91169.0,0.00219374]
[1767820210691,0.09328,91185.0,91169.0,0.00219374]
[1767820211692,0.010978,91184.0,91169.0,0.00219374]
[1767820214590,0.010979,91182.0,91169.0,0.00219374]
[1767820214791,0.09328,91185.0,91169.0,0.00219374]
[1767820214992,0.010978,91184.0,91169.0,0.00219374]
[1767820215496,0.010979,91181.0,91169.0,0.00219374]
[1767820215698,0.010979,91181.0,91165.0,0.08353801]
[1767820215896,0.010979,91181.0,91166.0,0.08353801]
[1767820216785,0.010979,91181.0,91168.0,0.17706676]
[1767820216987,0.010978,91184.0,91168.0,0.17706676]
[1767820217294,0.010978,91184.0,91161.0,0.17706676]
[1767820217592,0.08984449,91184.0,91164.0,0.08353801]
[1767820220295,0.010978,91182.0,91164.0,0.08353801]
[1767820221090,0.09328,91185.0,91167.0,0.08353801]
[1767820222201,0.010978,91183.0,91167.0,0.08353801]
[1767820224596,0.010979,91181.0,91167.0,0.08353801]
[1767820225199,0.010979,91181.0,91163.0,0.08353801]
[1767820225400,0.010979,91181.0,91164.0,0.08353801]
[1767820226396,0.07886649,91179.0,91160.0,0.08353801]
[1767820226697,0.08984549,91175.0,91155.0,0.08353801]
[1767820226905,0.09332,91174.0,91155.0,0.08353801]
[1767820227700,0.09332,91174.0,91156.0,0.08353801]
[1767820231105,0.104299,91174.0,91156.0,0.08353801]
[1767820233204,0.01098,91172.0,91156.0,0.08353801]
[1767820235310,0.01098,91172.0,91157.0,0.07458934]
[1767820235508,0.09332,91174.0,91158.0,0.07458934]
[1767820236113,0.01098,91173.0,91158.0,0.07458934]
[1767820239005,0.08906308,91173.0,91154.0,0.07458934]
[1767820239314,0.104299,91174.0,91156.0,0.07458934]
[1767820239514,0.104299,91174.0,91157.0,0.07458934]
[1767820240706,0.104299,91174.0,91158.0,0.07458934]
[1767820241510,0.09332,91174.0,91158.0,0.07458934]
[1767820242310,0.09332,91174.0,91148.0,0.00013817]
[1767820242311,0.17383939,91170.0,91148.0,0.00013817]
[1767820242510,0.17383939,91170.0,91128.0,0.010985]
[1767820242511,0.07808308,91166.0,91144.0,0.07458934]
[1767820242723,0.010981,91165.0,91145.0,0.07458934]
[1767820242906,0.09332,91164.0,91145.0,0.07458934]
[1767820243400,0.010981,91163.0,91145.0,0.07458934]
[1767820243606,0.01105925,91163.0,91145.0,0.07458934]
[1767820244314,7.825e-05,91163.0,91150.0,0.3044264]
[1767820244510,0.09332,91162.0,91153.0,0.07458934]
[1767820244710,0.09332,91162.0,91152.0,0.09633813]
[1767820245606,0.09332,91162.0,91150.0,0.20808827]
[1767820250920,0.09332,91161.0,91150.0,0.20808827]
[1767820252824,7.825e-05,91163.0,91154.0,0.17092747]
[1767820253013,0.01095237,91207.0,91150.0,0.13349893]
[1767820253014,0.09332,91168.0,91164.0,0.09633813]
[1767820253215,0.09332,91171.0,91164.0,0.09633813]
[1767820253430,0.09332,91171.0,91160.0,0.13349893]
[1767820253622,0.09332,91171.0,91161.0,0.05053188]
[1767820254126,0.09332,91171.0,91160.0,0.22983706]
[1767820254322,6.105e-05,91170.0,91160.0,0.22983706]
[1767820257216,6.105e-05,91170.0,91160.0,0.09633813]
[1767820259816,6.105e-05,91170.0,91160.0,0.22983706]
[1767820262223,0.01104105,91170.0,91154.0,0.09220409]
[1767820262428,0.01104105,91170.0,91152.0,0.0592982]
[1767820262628,0.01104105,91170.0,91154.0,0.0592982]
[1767820262828,6.105e-05,91170.0,91155.0,0.0592982]
[1767820263128,6.105e-05,91170.0,91160.0,0.13349893]
[1767820263719,0.07583616,91180.0,91161.0,0.05842443]
[1767820263923,0.09332,91179.0,91161.0,0.05842443]
[1767820264125,0.010979,91178.0,91161.0,0.05842443]
[1767820264331,0.010979,91176.0,91161.0,0.05842443]
[1767820265125,0.09332,91179.0,91161.0,0.05842443]
[1767820265631,0.010979,91176.0,91161.0,0.05842443]
[1767820266622,0.010979,91178.0,91161.0,0.05842443]
[1767820267232,0.09332,91179.0,91161.0,0.05842443]
[1767820267634,0.104299,91179.0,91161.0,0.05842443]
[1767820269036,0.08681516,91177.0,91160.0,0.13349893]
[1767820271036,0.010979,91177.0,91160.0,0.13349893]
[1767820271231,0.18791692,91179.0,91160.0,0.18595678]
[1767820271438,0.010979,91178.0,91160.0,0.18595678]
[1767820271633,0.010979,91178.0,91161.0,0.05245785]
[1767820272336,0.51448,91184.0,91163.0,0.05169053]
[1767820272337,0.010979,91181.0,91163.0,0.05169053]
[1767820272547,0.09332,91177.0,91160.0,0.13349893]
[1767820272736,0.010979,91175.0,91160.0,0.13349893]
[1767820272935,0.07583616,91174.0,91154.0,0.14389462]
[1767820273135,0.10557592,91175.0,91156.0,0.05169053]
[1767820273335,0.10557592,91175.0,91157.0,0.04980923]
[1767820274135,0.01098,91172.0,91157.0,0.04980923]
[1767820274341,0.10557592,91175.0,91157.0,0.04980923]
[1767820276745,0.09459692,91175.0,91157.0,0.04980923]
[1767820279956,0.10557592,91175.0,91157.0,0.04980923]
[1767820280162,0.01098,91173.0,91157.0,0.04980923]
[1767820283265,0.01098,91171.0,91157.0,0.04980923]
[1767820285866,0.010979,91174.0,91157.0,0.04980923]
[1767820286369,0.01098,91172.0,91157.0,0.04980923]
[1767820288661,0.09332,91171.0,91157.0,0.04980923]
[1767820288862,0.01098,91170.0,91157.0,0.04980923]
[1767820294075,0.09332,91171.0,91157.0,0.04980923]
[1767820294264,0.1043,91171.0,91157.0,0.04980923]
[1767820295371,0.09332,91171.0,91158.0,0.0329198]
[1767820295976,0.09332,91171.0,91152.0,0.09113457]
[1767820296275,0.09332,91171.0,91155.0,0.12335204]
[1767820296478,0.09332,91171.0,91156.0,0.03221747]
[1767820297876,0.09332,91171.0,91158.0,0.12255678]
[1767820298980,0.09332,91171.0,91158.0,0.09113457]
[1767820306085,0.01098,91170.0,91158.0,0.09113457]
[1767820307287,0.01098,91170.0,91155.0,0.02977058]
[1767820307475,0.09332,91171.0,91155.0,0.02977058]
[1767820307989,0.09332,91171.0,91146.0,0.09332]
[1767820307990,0.09332,91171.0,91157.0,0.11541095]
[1767820308187,0.09332,91171.0,91159.0,0.09113457]
[1767820308486,0.09332,91170.0,91160.0,0.11473738]
[1767820309389,0.071639,91176.0,91160.0,0.11473738]
[1767820309580,0.09332,91175.0,91160.0,0.11473738]
[1767820309780,0.071639,91176.0,91160.0,0.11473738]
[1767820310281,0.09332,91175.0,91160.0,0.11473738]
[1767820310885,0.09332,91175.0,91160.0,0.09113457]
[1767820311589,0.010979,91174.0,91160.0,0.09113457]
[1767820316993,0.09332,91175.0,91160.0,0.09113457]
[1767820317289,0.09888446,91179.0,91160.0,0.09113457]
[1767820317290,0.06870879,91193.0,91168.0,0.09113457]
[1767820317589,0.06870879,91198.0,91181.0,0.02057405]
[1767820317790,0.09332,91197.0,91181.0,0.02057405]
[1767820318792,0.09332,91197.0,91180.0,0.09113457]
[1767820318992,0.09332,91197.0,91178.0,0.02213372]
[1767820319182,0.06870879,91196.0,91178.0,0.02213372]
[1767820321094,0.081,91195.0,91178.0,0.02213372]
[1767820321393,0.09332,91194.0,91180.0,0.0197695]
[1767820322289,0.09332,91194.0,91174.0,0.11161445]
[1767820322498,0.09332,91194.0,91175.0,0.01911093]
[1767820322794,0.1569826,91194.0,91175.0,0.01911093]
[1767820325086,0.09332,91194.0,91175.0,0.01911093]
[1767820325287,0.09332,91194.0,91153.0,0.010982]
[1767820325288,0.09332,91194.0,91183.0,0.010978]
[1767820325490,0.09332,91200.0,91185.0,0.01797554]
[1767820325686,0.09332,91200.0,91187.0,0.01797554]
[1767820326092,0.09332,91205.0,91187.0,0.01797554]
[1767820326794,0.1569826,91205.0,91187.0,0.01797554]
[1767820327389,0.0636626,91204.0,91184.0,0.02708063]
[1767820328198,0.15587118,91204.0,91184.0,0.02708063]
[1767820329087,0.01196,91203.0,91184.0,0.02708063]
[1767820330902,0.01196,91203.0,91184.0,0.03805863]
[1767820331487,0.01196,91203.0,91187.0,0.02420671]
[1767820332704,0.01188288,91203.0,91193.0,0.02353337]
[1767820333095,0.01188288,91203.0,91191.0,0.09250352]
[1767820340108,0.01188288,91203.0,91191.0,0.11060168]
[1767820343608,0.01188288,91203.0,91191.0,0.12157868]
[1767820343822,0.01188288,91203.0,91191.0,0.11060168]
[1767820346122,0.09332,91206.0,91191.0,0.11060168]
[1767820348923,0.09220858,91211.0,91192.0,0.01139626]
[1767820349126,0.09332,91210.0,91192.0,0.01139626]
[1767820349715,0.09332,91210.0,91200.0,0.13340434]
[1767820349915,0.09332,91210.0,91192.0,0.01139626]
[1767820350417,0.01188,91209.0,91192.0,0.01139626]
[1767820353316,0.09332,91208.0,91192.0,0.01139626]
[1767820357331,0.09332,91208.0,91191.0,0.09250352]
[1767820359735,0.15447294,91208.0,91190.0,0.13340434]
[1767820362536,0.15447294,91208.0,91186.0,0.10744788]
[1767820362537,0.15261221,91205.0,91186.0,0.10744788]
[1767820362732,0.15261221,91196.0,91174.0,0.010979]
[1767820362931,0.13340434,91200.0,91175.0,0.09332]
[1767820362932,0.15261221,91195.0,91175.0,0.09332]
[1767820363127,0.06115294,91194.0,91174.0,0.00184964]
[1767820363436,0.06115294,91194.0,91174.0,0.09516964]
[1767820363841,0.06115294,91184.0,91174.0,0.09332]
[1767820364024,0.15261221,91183.0,91162.0,0.09332]
[1767820364337,0.15261221,91177.0,91162.0,0.09332]
[1767820364531,0.15261221,91175.0,91162.0,0.09332]
[1767820367243,0.06115294,91172.0,91154.0,0.09332]
[1767820367741,0.01098,91171.0,91154.0,0.09332]
[1767820368042,0.06115294,91164.0,91154.0,0.09332]
[1767820368339,0.09145927,91165.0,91154.0,0.09332]
[1767820368529,0.06115294,91167.0,91154.0,0.09332]
[1767820369136,0.09145927,91170.0,91154.0,0.09332]
[1767820369832,0.15261221,91170.0,91154.0,0.09332]
[1767820372846,0.06115294,91169.0,91154.0,0.09332]
[1767820373045,0.06115294,91168.0,91154.0,0.09332]
[1767820375343,0.06115294,91172.0,91154.0,0.09332]
[1767820375531,0.09145927,91175.0,91155.0,0.01106932]
[1767820375735,0.15261221,91175.0,91155.0,0.01106932]
[1767820375936,0.15261221,91174.0,91155.0,0.01106932]
[1767820376247,0.06115294,91173.0,91155.0,0.01106932]
[1767820378142,0.09145927,91174.0,91160.0,0.13340434]
[1767820378348,0.09332,91173.0,91160.0,0.13340434]
[1767820380849,0.09145927,91174.0,91160.0,0.13340434]
[1767820383750,0.010979,91175.0,91160.0,0.13340434]
[1767820384256,0.06032356,91176.0,91160.0,0.13340434]
[1767820385545,0.0119,91175.0,91160.0,0.13340434]
[1767820386151,0.0119,91175.0,91160.0,0.15042495]
[1767820386352,0.09332,91180.0,91166.0,0.00536602]
[1767820386961,0.06032356,91184.0,91166.0,0.01634602]
[1767820387154,0.15364356,91184.0,91166.0,0.00536602]
[1767820388056,0.06032356,91193.0,91175.0,0.0051966]
[1767820388261,0.06032356,91196.0,91180.0,0.13340434]
[1767820388957,0.09332,91195.0,91180.0,0.13340434]
[1767820389153,0.09332,91195.0,91180.0,0.13707911]
[1767820389351,0.09974429,91197.0,91180.0,0.13340434]
[1767820389552,0.25338785,91196.0,91176.0,0.01405604]
[1767820389752,0.25338785,91196.0,91180.0,0.13340434]
[1767820393864,0.06032356,91195.0,91180.0,0.13340434]
[1767820399559,0.06032356,91195.0,91180.0,0.14438334]
[1767820399765,0.19306429,91196.0,91180.0,0.14438334]
[1767820399973,0.19306429,91196.0,91180.0,0.13340434]
[1767820400164,0.19306429,91196.0,91183.0,0.010978]
[1767820401666,0.00219302,91199.0,91185.0,0.010978]
[1767820402468,0.00219302,91199.0,91187.0,0.010978]
[1767820402668,0.09974429,91206.0,91187.0,0.11036574]
[1767820402870,0.06032356,91207.0,91187.0,0.11036574]
[1767820403058,0.16006785,91207.0,91187.0,0.11036574]
[1767820403266,0.06032356,91206.0,91187.0,0.11036574]
[1767820404465,0.09974429,91207.0,91191.0,0.010977]
[1767820404866,0.06032356,91209.0,91191.0,0.010977]
[1767820405875,0.06032356,91208.0,91191.0,0.010977]
[1767820406364,0.06032356,91208.0,91188.0,0.010978]
[1767820406560,0.06032356,91208.0,91190.0,0.010977]
[1767820408070,0.06032356,91206.0,91187.0,0.09938774]
[1767820408277,0.06032356,91206.0,91187.0,0.11036574]
[1767820412172,0.14636393,91202.0,91182.0,0.09762715]
[1767820412376,0.05292027,91201.0,91183.0,0.010978]
[1767820412981,0.05292027,91201.0,91185.0,0.010978]
[1767820413372,0.05292027,91201.0,91184.0,0.010978]
[1767820415280,0.05292027,91200.0,91184.0,0.010978]
[1767820416490,0.05292027,91203.0,91182.0,0.09762715]
[1767820416788,0.05292027,91203.0,91185.0,0.010978]
[1767820418289,0.05292027,91203.0,91187.0,0.010978]
[1767820419393,0.09344366,91206.0,91187.0,0.010978]
[1767820419578,0.05292027,91205.0,91187.0,0.010978]
[1767820419781,0.05292027,91203.0,91187.0,0.010978]
[1767820420487,0.05292027,91202.0,91187.0,0.010978]
[1767820422082,0.14636393,91202.0,91182.0,0.09762715]
[1767820422480,0.14636393,91202.0,91186.0,0.010978]
[1767820422683,0.14636393,91202.0,91188.0,0.010978]
[1767820425692,0.05292027,91228.0,91189.0,0.09332]
[1767820425895,0.13824309,91243.0,91177.0,0.010979]
[1767820425896,0.13824309,91243.0,91216.0,0.09762715]
[1767820426194,0.05511185,91259.0,91233.0,0.09762715]
[1767820426388,0.05511185,91259.0,91235.0,0.09762715]
[1767820426584,0.05511185,91259.0,91236.0,0.09332]
[1767820427796,0.09344366,91256.0,91236.0,0.09332]
[1767820427996,0.05292027,91255.0,91236.0,0.09332]
[1767820428194,0.05292027,91255.0,91236.0,0.19094715]
[1767820428597,0.05292027,91253.0,91236.0,0.09332]
[1767820435289,0.05292027,91258.0,91237.0,0.09762715]
[1767820435490,0.05292027,91258.0,91239.0,0.010972]
[1767820436601,0.05292027,91258.0,91237.0,0.09762715]
[1767820436803,0.05292027,91258.0,91237.0,0.10859915]
[1767820437096,0.05292027,91258.0,91239.0,0.010972]
[1767820437301,0.05292027,91258.0,91244.0,0.010971]
[1767820437599,0.05292027,91258.0,91241.0,0.010971]
[1767820438098,0.05292027,91256.0,91241.0,0.010971]
[1767820438692,0.05292027,91251.0,91236.0,0.09332]
[1767820438904,0.05292027,91249.0,91236.0,0.09332]
[1767820439194,0.00219158,91259.0,91236.0,0.09332]
[1767820439396,0.05292027,91255.0,91236.0,0.09332]
[1767820439791,0.05292027,91254.0,91236.0,0.09332]
[1767820440702,0.05292027,91251.0,91236.0,0.09332]
[1767820441403,0.14636393,91247.0,91236.0,0.09332]
[1767820441590,0.04934112,91246.0,91236.0,0.09332]
[1767820441789,0.00219158,91259.0,91236.0,0.09332]
[1767820441790,0.09812109,91255.0,91236.0,0.09332]
[1767820442087,0.05149417,91251.0,91236.0,0.09332]
[1767820444604,0.05149417,91249.0,91236.0,0.09332]
[1767820444807,0.05149417,91246.0,91236.0,0.09332]
[1767820445705,0.09812109,91251.0,91236.0,0.09332]
[1767820445904,0.05149417,91250.0,91236.0,0.09332]
[1767820446895,0.00219158,91259.0,91226.0,0.010973]
[1767820446896,0.05149417,91242.0,91226.0,0.010973]
[1767820447096,0.05149417,91241.0,91227.0,0.09328]
[1767820447600,0.00219158,91259.0,91227.0,0.09328]
[1767820447601,0.05149417,91246.0,91227.0,0.09328]
[1767820448199,0.05149417,91246.0,91228.0,0.010973]
[1767820449596,0.05149417,91246.0,91226.0,0.09497516]
[1767820449797,0.05149417,91246.0,91227.0,0.09324]
[1767820450903,0.05149417,91245.0,91227.0,0.09324]
[1767820451204,0.00219158,91259.0,91214.0,0.010974]
[1767820451205,0.14961526,91229.0,91214.0,0.010974]
[1767820451404,0.05149417,91229.0,91215.0,0.09324]
[1767820451609,0.05149417,91232.0,91215.0,0.09324]
[1767820451810,0.05149417,91232.0,91216.0,0.010974]
[1767820452006,0.05149417,91232.0,91217.0,0.09324]
[1767820453210,0.05149417,91232.0,91215.0,0.010974]
[1767820453412,0.05149417,91232.0,91216.0,0.09324]
[1767820454501,0.05149417,91232.0,91217.0,0.010974]
[1767820454810,0.05149417,91232.0,91218.0,0.09324]
[1767820457913,0.05149417,91227.0,91219.0,0.09324]
[1767820458112,0.05149417,91227.0,91220.0,0.09324]
[1767820458411,0.05149417,91232.0,91221.0,0.09324]
[1767820458596,0.05149417,91232.0,91214.0,0.010975]
[1767820458800,0.05149417,91232.0,91215.0,0.09324]
[1767820459713,0.05149417,91232.0,91218.0,0.010974]
[1767820460812,0.05149417,91232.0,91220.0,0.010974]
[1767820461202,0.05149417,91236.0,91220.0,0.010974]
[1767820463014,0.05149417,91236.0,91217.0,0.010974]
[1767820464011,0.05149417,91236.0,91219.0,0.010974]
[1767820465005,0.05149417,91236.0,91216.0,0.010974]
[1767820466005,0.05149417,91236.0,91220.0,0.13333416]
[1767820466410,0.05149417,91236.0,91218.0,0.010974]
[1767820466610,0.05149417,91236.0,91220.0,0.13333416]
[1767820467011,0.05149417,91235.0,91220.0,0.13333416]
[1767820467813,0.05149417,91235.0,91217.0,0.010974]
[1767820469012,0.05149417,91235.0,91220.0,0.13333416]
[1767820470418,0.05149417,91235.0,91217.0,0.010974]
[1767820473216,0.05149417,91235.0,91215.0,0.19918916]
[1767820474321,0.05149417,91235.0,91217.0,0.010974]
[1767820475627,0.05149417,91235.0,91219.0,0.010974]
[1767820476614,0.05149417,91235.0,91215.0,0.18821516]
[1767820476615,0.05149417,91235.0,91218.0,0.010974]
[1767820477924,0.05149417,91235.0,91220.0,0.13333416]
[1767820480416,0.05149417,91235.0,91220.0,0.14430816]
[1767820481920,0.05149417,91235.0,91219.0,0.010974]
[1767820482122,0.05149417,91235.0,91220.0,0.13333416]
[1767820484533,0.05149417,91235.0,91219.0,0.010974]
[1767820485125,0.04731957,91241.0,91221.0,0.010974]
[1767820485331,0.04731957,91238.0,91220.0,0.13333416]
[1767820485532,0.04731957,91237.0,91220.0,0.13333416]
[1767820486926,0.04731957,91237.0,91219.0,0.010974]
[1767820487132,0.04731957,91237.0,91220.0,0.13333416]
[1767820489727,0.04731957,91237.0,91220.0,0.14430816]
[1767820490038,0.04731957,91237.0,91221.0,0.010974]
[1767820490625,0.04731957,91237.0,91220.0,0.13333416]
[1767820492133,0.14104941,91237.0,91219.0,0.010974]
[1767820492433,0.04731957,91236.0,91220.0,0.13333416]
[1767820493731,0.04731957,91236.0,91221.0,0.010974]
[1767820494237,0.04731957,91236.0,91223.0,0.010973]
[1767820496139,0.04731957,91236.0,91221.0,0.09328]
[1767820497745,0.04731957,91240.0,91221.0,0.19108752]
[1767820500138,0.04731957,91240.0,91221.0,0.20206152]
[1767820501531,0.09328,91245.0,91230.0,0.13333416]
[1767820501730,0.04295671,91254.0,91235.0,0.13333416]
[1767820501935,0.04295671,91254.0,91235.0,0.09328]
[1767820502739,0.04295671,91254.0,91235.0,0.104252]
[1767820503636,0.09614149,91258.0,91240.0,0.13333416]
[1767820503841,0.09547158,91259.0,91241.0,0.010971]
[1767820504142,0.13585432,91259.0,91241.0,0.010971]
[1767820504638,0.13585432,91259.0,91240.0,0.23189116]
[1767820505843,0.04038274,91258.0,91240.0,0.23189116]
[1767820506050,0.04038274,91249.0,91219.0,0.07853936]
[1767820506231,0.04038274,91237.0,91212.0,0.191837]
[1767820506432,0.13317417,91232.0,91212.0,0.191837]
[1767820506737,0.04038274,91231.0,91212.0,0.191837]
[1767820506937,0.04038274,91230.0,91212.0,0.191837]
[1767820507144,0.22661416,91240.0,91212.0,0.09328]
[1767820507145,0.04038274,91228.0,91212.0,0.09328]
[1767820507533,0.09328,91240.0,91212.0,0.098557]
[1767820507534,0.09279143,91232.0,91212.0,0.098557]
[1767820507739,0.04038274,91231.0,91213.0,0.09328]
[1767820508139,0.04038274,91230.0,91213.0,0.09328]
[1767820511542,0.13317417,91229.0,91213.0,0.09328]
[1767820511746,0.04038274,91228.0,91213.0,0.09328]
[1767820512743,0.02055785,91228.0,91213.0,0.09328]
[1767820513044,0.09279143,91234.0,91213.0,0.09328]
[1767820513243,0.09279143,91239.0,91217.0,0.12323281]
[1767820513441,0.09279143,91239.0,91217.0,0.098557]
[1767820514530,0.09279143,91239.0,91220.0,0.13333416]
[1767820514734,0.04038274,91238.0,91220.0,0.23189116]
[1767820515141,0.04038274,91237.0,91220.0,0.13333416]
[1767820515338,0.04038274,91236.0,91220.0,0.13333416]
[1767820519848,0.04038274,91236.0,91217.0,0.13208632]
[1767820520145,0.04038274,91236.0,91220.0,0.13333416]
[1767820522746,0.04038274,91236.0,91217.0,0.12111232]
[1767820523444,0.04038274,91233.0,91213.0,0.09328]
[1767820523641,0.04038274,91236.0,91215.0,0.11923496]
[1767820525855,0.04038274,91236.0,91217.0,0.098557]
[1767820527354,0.04038274,91236.0,91217.0,0.11910387]
[1767820535259,0.04038274,91236.0,91217.0,0.098557]
[1767820536558,0.03899862,91234.0,91213.0,0.09328]
[1767820536765,0.03899862,91231.0,91213.0,0.09328]
[1767820537056,0.03899862,91231.0,91213.0,0.18590159]
[1767820537261,0.03899862,91231.0,91213.0,0.20249975]
[1767820537649,0.03899862,91236.0,91214.0,0.09262159]
[1767820538256,0.03899862,91235.0,91214.0,0.09262159]
[1767820539571,0.03899862,91232.0,91214.0,0.09262159]
[1767820541763,0.03899862,91235.0,91216.0,0.09262159]
[1767820546366,0.03899862,91233.0,91212.0,0.10787175]
[1767820546765,0.03899862,91233.0,91212.0,0.20049334]
[1767820547065,0.03899862,91233.0,91213.0,0.10522998]
[1767820547366,0.03899862,91233.0,91214.0,0.10483823]
[1767820548465,0.03899862,91233.0,91215.0,0.10445214]
[1767820548663,0.03899862,91238.0,91218.0,0.10445214]
[1767820549167,0.09328,91240.0,91223.0,0.10445214]
[1767820549466,0.09328,91240.0,91223.0,0.09262159]
[1767820549666,0.03899862,91239.0,91223.0,0.09262159]
[1767820549868,0.03899862,91239.0,91218.0,0.10406298]
[1767820550086,0.03899862,91233.0,91213.0,0.10406298]
[1767820550265,0.03899862,91229.0,91212.0,0.09328]
[1767820550770,0.09328,91233.0,91221.0,0.09262159]
[1767820558662,0.03899862,91237.0,91221.0,0.09262159]
[1767820558970,0.09328,91235.0,91221.0,0.09262159]
[1767820559766,0.09328,91235.0,91216.0,0.010974]
[1767820559767,0.03899862,91248.0,91228.0,0.09262159]
[1767820560072,0.13227862,91247.0,91230.0,0.09262159]
[1767820560269,0.03899862,91246.0,91230.0,0.09262159]
[1767820560481,0.03899862,91242.0,91223.0,0.09328]
[1767820561168,0.03899862,91241.0,91223.0,0.09328]
[1767820561473,0.03899862,91240.0,91223.0,0.09328]
[1767820561873,0.03899862,91240.0,91221.0,0.0933636]
[1767820562170,0.03899862,91240.0,91221.0,0.1866436]
[1767820563974,0.03899862,91240.0,91221.0,0.0933636]
[1767820564178,0.03899862,91240.0,91221.0,0.1866436]
[1767820564371,0.03899862,91240.0,91221.0,0.19761913]
[1767820564566,0.0359287,91238.0,91221.0,0.09328]
[1767820564968,0.0359287,91269.0,91229.0,0.01097553]
[1767820565162,0.0359287,91266.0,91243.0,0.01058921]
[1767820565370,0.09328,91268.0,91236.0,0.0933636]
[1767820565371,0.0359287,91256.0,91236.0,0.0933636]
[1767820565569,0.0359287,91254.0,91237.0,0.09328]
[1767820572384,0.0359287,91254.0,91237.0,0.1866436]
[1767820573287,0.0359287,91254.0,91237.0,0.0933636]
[1767820575384,0.0359287,91257.0,91237.0,0.0933636]
[1767820577089,0.0359287,91257.0,91237.0,0.09945943]
[1767820580790,0.0359287,91257.0,91238.0,0.00469514]
[1767820581087,0.0359287,91257.0,91239.0,0.09805874]
[1767820581288,0.09328,91258.0,91247.0,0.09769332]
[1767820581686,0.09328,91258.0,91247.0,0.0933636]
[1767820581880,0.09328,91258.0,91242.0,0.00432972]
[1767820582083,0.12947778,91253.0,91229.0,0.0021923]
[1767820582281,0.0359287,91251.0,91229.0,0.0955559]
[1767820582785,0.0359287,91251.0,91230.0,0.09749473]
[1767820583688,0.0359287,91243.0,91229.0,0.0021923]
[1767820583883,0.0359287,91242.0,91229.0,0.0021923]
[1767820593687,0.0359287,91242.0,91200.0,0.14429662]
[1767820593688,0.03023905,91237.0,91216.0,0.09452977]
[1767820593883,0.03023905,91236.0,91216.0,0.09452977]
[1767820595590,0.03023905,91239.0,91216.0,0.09452977]
[1767820597691,0.03023905,91239.0,91216.0,0.10550377]
[1767820597891,0.03023905,91241.0,91221.0,0.09452977]
[1767820598295,0.12351905,91240.0,91221.0,0.09452977]
[1767820599896,0.03023905,91239.0,91221.0,0.09452977]
[1767820602612,0.09328,91238.0,91221.0,0.09452977]
[1767820602897,0.03023905,91239.0,91221.0,0.09452977]
[1767820603198,0.09328,91237.0,91221.0,0.09452977]
[1767820603501,0.03023905,91239.0,91221.0,0.09452977]
[1767820603701,0.09328,91238.0,91221.0,0.09452977]
[1767820604199,0.03023905,91239.0,91221.0,0.09452977]
[1767820604401,0.09328,91238.0,91221.0,0.09452977]
[1767820605200,0.09328,91237.0,91221.0,0.09452977]
[1767820607290,0.03023905,91239.0,91221.0,0.09452977]
[1767820607703,0.09328,91238.0,91221.0,0.09452977]
[1767820609798,0.03023905,91239.0,91221.0,0.09452977]
[1767820610390,0.09328,91238.0,91221.0,0.09452977]
[1767820612703,0.03023905,91239.0,91221.0,0.09452977]
[1767820612900,0.09328,91237.0,91221.0,0.09452977]
[1767820613896,0.03023905,91239.0,91221.0,0.09452977]
[1767820614099,0.09328,91238.0,91221.0,0.09452977]
[1767820614802,0.12351905,91238.0,91221.0,0.09452977]
[1767820615309,0.03023905,91237.0,91221.0,0.09452977]
[1767820615808,0.03023905,91237.0,91215.0,0.09452977]
[1767820615809,0.03023905,91236.0,91215.0,0.09452977]
[1767820616513,0.03023905,91236.0,91215.0,0.10550377]
[1767820617510,0.03023905,91236.0,91215.0,0.09452977]
[1767820621309,0.09328,91238.0,91215.0,0.09452977]
[1767820621816,0.1211777,91238.0,91215.0,0.09452977]
[1767820625813,0.02916902,91237.0,91215.0,0.09452977]
[1767820628515,0.12244902,91238.0,91221.0,0.09497255]
[1767820637232,0.09328,91238.0,91221.0,0.09497255]
[1767820637826,0.02916902,91237.0,91220.0,0.13332062]
[1767820638526,0.12244902,91237.0,91220.0,0.13332062]
[1767820639029,0.02916902,91237.0,91220.0,0.13332062]
[1767820639233,0.12244902,91237.0,91220.0,0.13332062]
[1767820640336,0.02916902,91237.0,91220.0,0.13332062]
[1767820640535,0.12244902,91237.0,91220.0,0.13332062]
[1767820640836,0.02916902,91236.0,91220.0,0.13332062]
[1767820641035,0.02916902,91236.0,91214.0,0.09497255]
[1767820643524,0.02916902,91235.0,91214.0,0.09497255]
[1767820643837,0.02916902,91233.0,91214.0,0.09497255]